Cogmind - Beta 16 @@@ ROGUE MODE // 2025.11.14 @ 12:52:06 Player: AllieBrymm Result: Destroyed by 8F-USX(h) with Bolt Gun Performance ------------- Evolutions (0) 0 Regions Visited (4) 800 Robots Destroyed (22) 110 Value Destroyed (584) 584 Prototype IDs (14) 280 Alien Tech Used (0) 0 Bonus (800) 800 TOTAL SCORE: 2574 Bonus ------- Registered with UFD 300 Met Optimus in HQ 500 Cogmind --------- Core Integrity 0/250 Matter 275/300 Energy 100/100 System Corruption 0% Temperature Cool (0) Movement Treading (160) Location -8/Scraptown Parts ------- > --- POWER (1) -------- (None) > --- PROPULSION (2) --- Light Treads > --- UTILITY (2) ------ Medium Storage Unit A0-MCA's Component Scanner > --- WEAPON (2) ------- Makeshift Hammer > --- INVENTORY (10) --- Scrap Suit Advanced Heat Sink Subdweller Optics Experimental Terrain Scanner Heavy EM Pulse Gun Improved Assault Rifle Missile Launcher DRS Beacon (Ready) Peak State ------------ > --- POWER ------------ Light Nuclear Core > --- PROPULSION ------- Light Treads Medium Treads > --- UTILITY ---------- Medium Storage Unit A0-MCA's Component Scanner > --- WEAPON ----------- Grenade Launcher Makeshift Hammer > --- INVENTORY -------- Scrap Suit Advanced Heat Sink Subdweller Optics Experimental Terrain Scanner Heavy EM Pulse Gun Improved Assault Rifle Missile Launcher DRS Beacon [Rating: 26] Favorites ----------- Power Light Nuclear Core Engine Ion Engine Power Core Light Nuclear Core Propulsion Light Treads Treads Light Treads Leg Aluminum Leg Wheel Subdweller Monowheel Hover Unit Hover Unit Utility Medium Storage Unit Device Structural Scanner Storage Medium Storage Unit Processor A0-MCA's Component Scanner Protection Insulated Plating Weapon Makeshift Hammer Energy Gun Medium Laser Energy Cannon Subdweller Beam Cannon Ballistic Gun Improved Assault Rifle Launcher Grenade Launcher Impact Weapon Makeshift Hammer Special Melee Weapon Datajack Build | -11 -10 -10 -8 -8 ------- Run | Yrd Mat Sub Rec Scr Slots Evolved . | . . . . . Power . | . . . . . Propulsion . | . . . . . Utility . | . . . . . Weapon . | . . . . . Parts Attached 32 | 7 9 9 3 4 Power 4 | 2 . 1 . 1 Engine 3 | 2 . 1 . . Core 1 | . . . . 1 Reactor . | . . . . . Propulsion 11 | 2 4 2 2 1 Treads 3 | . . . 2 1 Leg 6 | 2 4 . . . Wheel 1 | . . 1 . . Hover 1 | . . 1 . . Flight . | . . . . . Utility 7 | 1 2 1 1 2 Device 3 | . 1 1 1 . Storage 2 | 1 1 . . . Processor 1 | . . . . 1 Hackware . | . . . . . Protection 1 | . . . . 1 Artifact . | . . . . . Weapon 10 | 2 3 5 . . Energy Gun 4 | 2 . 2 . . Energy Cannon 1 | . . 1 . . Ballistic Gun 2 | . 2 . . . Ballistic Cannon . | . . . . . Launcher 1 | . . 1 . . Special Weapon . | . . . . . Impact Weapon 1 | . . 1 . . Slashing Weapon . | . . . . . Piercing Weapon . | . . . . . Special Melee Weapon 1 | . 1 . . . Unidentified Prototypes 1 | . 1 . . . Parts Lost 5 | . . 2 . 3 Power 1 | . . . . 1 Propulsion 3 | . . 2 . 1 Utility . | . . . . . Weapon 1 | . . . . 1 Highest Loss Streak 3 | . . 1 . 3 To Critical Strikes 2 | . . 1 . 1 Average Backups 8 | 1 7 9 8 8 Power . | . 1 1 1 . Propulsion 1 | . 1 2 2 1 Utility 1 | . . 1 1 2 Weapon 3 | . 2 3 3 3 Tool/Special . | . . . . . Unused Backups 12 | . 5 . . 7 Power . | . . . . . Propulsion . | . . . . . Utility 4 | . . . . 4 Weapon 8 | . 5 . . 3 Tool/Special . | . . . . . Average Slot Usage (%) 99 | . 99 99 93 99 Engine 8 | . 14 14 14 3 Core 5 | . . . . 10 Treads 13 | . . . 15 27 Leg 9 | . 28 13 . . Wheel 2 | . . 8 6 . Hover 1 | . . 5 . . Device 11 | . 13 13 14 9 Storage 14 | . 14 14 14 14 Processor 1 | . . . . 2 Protection 1 | . . . . 2 Energy Gun 5 | . 14 6 . . Energy Cannon 1 | . . 5 . . Ballistic Gun 5 | . 10 13 . . Launcher 7 | . . . 14 14 Impact Weapon 7 | . . 2 14 14 Peak Build Rating 26 | 6 12 15 13 26 Average Rating 13 | 4 8 13 12 16 On Entrance 8 | . 6 12 13 12 Avg Prop Armor Cover (%) 7 | . . 7 . . Naked Turns . | . . . . . Heaviest Build 27 | 13 22 27 22 24 Greatest Support 48 | 20 20 20 40 48 Greatest Overweight (x) 4 | 4 1 1 1 1 Average Overweight (x) . | . . 1 . . Largest Inventory Capacity 10 | 8 10 10 10 10 Average Capacity 9 | 7 9 10 10 10 Most Carried 10 | 2 10 10 10 10 Average Carried 9 | 1 7 9 9 9 Final Capacity 10 | 8 10 10 10 10 Final Carried 10 | 2 10 9 10 9 Class Distribution -------------------- 58% | Mutant 41% | Scavenger-Mutant Dominant Class ---------------- Mutant | -10/Materials Mutant | -10/Subcaves Scavenger-Mutant | -8/Recycling Scavenger-Mutant | -8/Scraptown Resources | -11 -10 -10 -8 -8 ----------- Run | Yrd Mat Sub Rec Scr Matter Collected 677 | 175 223 197 50 32 Remotely . | . . . . . Salvage Created 822 | 67 293 412 50 . Parts 51 | 3 24 19 5 . Haulers Intercepted . | . . . . . Recyclers Shooed . | . . . . . Parts Field Recycled . | . . . . . Retrieved Matter . | . . . . . Parts Self-Destructed 11 | . . 11 . . Prevented . | . . . . . Parts Restored . | . . . . . Kills | -11 -10 -10 -8 -8 ------- Run | Yrd Mat Sub Rec Scr Combat Hostiles Destroyed 19 | . 10 8 1 . Melee 1 | . . . 1 . Guns 15 | . 10 5 . . Cannons 1 | . . 1 . . AOE 1 | . . 1 . . Classes Destroyed 7 | 1 4 1 1 . Worker 1 | . 1 . . . Recycler 1 | 1 . . . . Watcher 1 | . 1 . . . Swarmer 6 | . 6 . . . Grunt 4 | . 4 . . . Sentry 1 | . . . 1 . Subdweller 8 | . . 8 . . Best Kill Streak 4 | 1 4 2 1 . Combat Bots Only 3 | . 3 2 1 . Max Kills in Single Turn 1 | 1 1 1 1 . Gunslinging . | . . . . . Exploded 1 | . . 1 . . Melee 1 | . . . 1 . Uniques/NPCs Destroyed . | . . . . . Combat | -11 -10 -10 -8 -8 -------- Run | Yrd Mat Sub Rec Scr Hostile Shots Fired 111 | . 42 38 . 31 Missed 26 | . 10 7 . 9 Hits 85 | . 32 31 . 22 Projectile 85 | . 32 31 . 22 Critical Strikes 4 | . . 3 . 1 Damage Taken 1343 | . 276 758 . 309 Core 254 | . 41 175 . 38 Absorbed by Shields . | . . . . . Regen/Repaired (Parts) 202 | . . . . 202 Core Remaining (%) 100 | 100 . . . . Volleys Fired 67 | 3 29 35 . . Largest 2 | 2 2 2 . . Hottest 125 | 90 90 125 . . Shots Fired 125 | 6 58 61 . . Gun 105 | 6 58 41 . . Cannon 14 | . . 14 . . Launcher 6 | . . 6 . . Special . | . . . . . Kinetic 39 | . 6 33 . . Thermal 72 | 6 52 14 . . Explosive 6 | . . 6 . . Electromagnetic 8 | . . 8 . . Robot Hit Streak 10 | 4 6 10 . . Robot Miss Streak 8 | . 8 2 . . Penetration Max . | . . . . . Secondary Targets 2 | . 1 1 . . Max Gunslinging Chain 1 | . 1 1 . . Shots Hit Robots 81 | 4 34 42 1 . Core Hits 32 | 2 15 14 1 . Critical Kills 1 | . . 1 . . Critical Parts Destroyed . | . . . . . Critical Strikes 3 | . 1 2 . . Burn 1 | . 1 . . . Meltdown 1 | . . 1 . . Destroy 1 | . . 1 . . Melee Attacks 11 | . 6 . 5 . Impact 5 | . . . 5 . Slashing . | . . . . . Piercing . | . . . . . Sneak Attacks 6 | . 5 . 1 . Combat Hostiles . | . . . . . Follow-up Attacks . | . . . . . Damage Inflicted 1302 | 45 380 811 66 . Guns 891 | 45 373 473 . . Cannons 225 | . . 225 . . Explosions 113 | . . 113 . . Melee 66 | . . . 66 . Ramming 7 | . 7 . . . Kinetic 456 | . 59 397 . . Thermal 584 | 45 314 225 . . Explosive 113 | . . 113 . . Electromagnetic 76 | . . 76 . . Impact 66 | . . . 66 . Slashing . | . . . . . Piercing . | . . . . . Highest Corruption . | . . . . . Average Corruption . | . . . . . Corruption Purged . | . . . . . Corruption Blocked . | . . . . . Overload Shots . | . . . . . Overflow Damage 8 | . . 8 . . Projectiles . | . . . . . Explosions 8 | . . 8 . . Melee . | . . . . . Knockbacks 1 | . 1 . . . Impact 1 | . 1 . . . Kinetic . | . . . . . Secondary . | . . . . . Self-Inflicted Damage 48 | . . 48 . . Shots 2 | . . 2 . . Rammed . | . . . . . Targets Rammed 2 | . 2 . . . Kicked 2 | . 2 . . . Crushed . | . . . . . Highest Temperature 300 | 90 300 254 . . Average Temperature 85 | 48 88 95 . . Received Heat Transfer 492 | . 36 417 . 39 Effects 2 | . 2 . . . Energy Bleed 1 | . 1 . . . Damage (minor) 1 | . 1 . . . Siege Activations . | . . . . . Martial Activations . | . . . . . Shielding Activations . | . . . . . Robots Disrupted . | . . . . . Combat Hostiles . | . . . . . Robots Corrupted . | . . . . . Combat Hostiles . | . . . . . Parts Fried . | . . . . . Impact Corruptions . | . . . . . Robots Melted 1 | . . 1 . . Combat Hostiles 1 | . . 1 . . Parts Melted . | . . . . . Heat Transferred 1300 | 124 880 296 . . Parts Sabotaged . | . . . . . Parts Stolen . | . . . . . Parts Stripped . | . . . . . Power Chain Reactions . | . . . . . Alert | -11 -10 -10 -8 -8 ------- Run | Yrd Mat Sub Rec Scr Maximum Alert Level . | . . . . . Low Security (%) 100 | 100 100 . 100 . Level 1 . | . . . . . Level 2 . | . . . . . Level 3 . | . . . . . Level 4 . | . . . . . Level 5 . | . . . . . High Security . | . . . . . Max Security . | . . . . . Peak Influence 95 | 5 95 . 22 . Initial 11 | . 3 . 11 . Average 24 | . 30 . 7 . Influence Increases 518 | 5 334 120 59 . Destroy 0b10 Robot/C 220 | . 200 . 20 . Destroy 0b10 Robot/NC 15 | 5 10 . . . Destroy Leader 42 | . 42 . . . Successful Hack 56 | . 21 . 35 . Destroy Structure 5 | . 1 . 4 . Lose Combat Pursuer 180 | . 60 120 . . Influence Decreases 518 | . 339 96 83 . Entered New Map 15 | . 2 . 13 . Time Decay 460 | . 294 96 70 . Purge Threat 43 | . 43 . . . Squads Dispatched 3 | . 3 . . . Investigation 1 | . 1 . . . Extermination . | . . . . . Reinforcement 2 | . 2 . . . Assault . | . . . . . Garrison . | . . . . . Intercept . | . . . . . Searches Triggered . | . . . . . Construction Impeded . | . . . . . Haulers Reinforced . | . . . . . Active Scanning Responses . | . . . . . Cargo Convoy Interrupts . | . . . . . Stealth | -11 -10 -10 -8 -8 --------- Run | Yrd Mat Sub Rec Scr Distress Signals 1 | . 1 . . . Communications Jammed . | . . . . . Distress Signals . | . . . . . Times Spotted 45 | . 20 15 . 10 Peak Tracking Total 5 | . 4 5 . 5 Tactical Retreats 6 | . 3 3 . . Traps | -11 -10 -10 -8 -8 ------- Run | Yrd Mat Sub Rec Scr Traps Triggered 1 | . 1 . . . Indirectly . | . . . . . Trap Hack Attempts . | . . . . . Triggered . | . . . . . Disarmed . | . . . . . Reprogrammed . | . . . . . Reused . | . . . . . Traps Extracted . | . . . . . Installed . | . . . . . Triggered . | . . . . . Machines | -11 -10 -10 -8 -8 ---------- Run | Yrd Mat Sub Rec Scr Machines Disabled . | . . . . . Max in Single Turn . | . . . . . Machines Repaired . | . . . . . Machines Dismantled . | . . . . . Machines Sabotaged . | . . . . . Overloaded Fab Kills . | . . . . . Hacking | -11 -10 -10 -8 -8 --------- Run | Yrd Mat Sub Rec Scr Machines Accessed 17 | . 4 1 7 5 Terminals 9 | . 4 . 5 . Fabricators . | . . . . . Repair Stations . | . . . . . Recycling Units . | . . . . . Scanalyzers . | . . . . . Garrison Access . | . . . . . Total Hacks 85 | . 9 3 37 36 Successful 74 | . 7 3 28 36 Failed 11 | . 2 . 9 . Catastrophic 1 | . . . 1 . Database Lockouts . | . . . . . Manual 16 | . 3 . 13 . Terminals 25 | . 9 . 16 . Fabricators . | . . . . . Repair Stations . | . . . . . Recycling Units . | . . . . . Scanalyzers . | . . . . . Garrison Access . | . . . . . Terminal Hacks 67 | . 5 3 23 36 Record 60 | . . 3 21 36 Robot Analysis 2 | . 1 . 1 . Prototype ID Bank 1 | . 1 . . . Branch Access Points 1 | . 1 . . . Unreport Threat 1 | . 1 . . . Dispatch Records 1 | . . . 1 . Zone Layout 1 | . 1 . . . Fabricator Hacks . | . . . . . Repair Station Hacks . | . . . . . Recycling Unit Hacks . | . . . . . Scanalyzer . | . . . . . Garrison Access Hacks . | . . . . . Unauthorized Hacks 7 | . 2 . 5 . Terminals 7 | . 2 . 5 . Track 3 | . 1 . 2 . Botnet 4 | . 1 . 3 . Fabricators . | . . . . . Repair Stations . | . . . . . Recycling Units . | . . . . . Scanalyzers . | . . . . . Garrison Access . | . . . . . Data Cores Recovered . | . . . . . Used . | . . . . . Hacking Detections 8 | . 3 . 5 . Full Trace Events 1 | . . . 1 . Feedback Events . | . . . . . Feedback Blocked . | . . . . . Robot Schematics Acquired . | . . . . . Robots Built . | . . . . . Authchips . | . . . . . Time . | . . . . . Total Robot Build Rating . | . . . . . Part Schematics Acquired . | . . . . . Parts Built . | . . . . . Authchips . | . . . . . Time . | . . . . . Total Part Build Rating . | . . . . . Part Studies Acquired . | . . . . . Parts Repaired . | . . . . . Time . | . . . . . Parts Recycled . | . . . . . Recycled Matter . | . . . . . Retrieved Matter . | . . . . . Retrieved Components . | . . . . . Parts Scanalyzed . | . . . . . Part Schematics Acquired . | . . . . . Parts Damaged . | . . . . . Bothacking | -11 -10 -10 -8 -8 ------------ Run | Yrd Mat Sub Rec Scr Used RIF Installer . | . . . . . Robots Hacked 4 | . 4 . . . Non-combat 3 | . 3 . . . Combat 1 | . 1 . . . Robot Hacks Applied 5 | . 5 . . . parse_system 2 | . 2 . . . no_distress 1 | . 1 . . . find_recycling 1 | . 1 . . . check_alert 1 | . 1 . . . Relay Couplers Released . | . . . . . Fabnet Peak Effective % . | . . . . . Robots Rewired . | . . . . . Allies Hacked . | . . . . . Hacks Repelled . | . . . . . Allies | -11 -10 -10 -8 -8 -------- Run | Yrd Mat Sub Rec Scr Total Allies . | . . . . . Largest Group . | . . . . . Highest-Rated Group . | . . . . . Highest-Rated Ally . | . . . . . Total Orders . | . . . . . Ally Attacks . | . . . . . Total Damage . | . . . . . Kills . | . . . . . Allies Corrupted . | . . . . . Allies Melted . | . . . . . Intel | -11 -10 -10 -8 -8 ------- Run | Yrd Mat Sub Rec Scr Active Infowar (turns) 1403 | . 834 569 . . Structural 1403 | . 834 569 . . Robot Analysis Total 2 | . 1 . 1 . Derelict Logs Recovered 4 | . . 2 . 2 Drone Launches . | . . . . . Drone Recoveries . | . . . . . Exploration | -11 -10 -10 -8 -8 ------------- Run | Yrd Mat Sub Rec Scr Turns Passed 4005 | 78 881 1023 205 1818 Spaces Moved 2399 | 48 486 631 132 1102 Core 18 | 18 . . . . Treads 1175 | . . . 73 1102 Legs 691 | 30 486 175 . . Wheels 515 | . . 456 59 . Hover . | . . . . . Flight . | . . . . . Fastest Speed 50 | 50 120 120 120 160 Average Speed 148 | 121 137 139 143 160 Slowest Speed 250 | 250 190 190 240 240 Overloaded Moves . | . . . . . Propulsion Burnouts . | . . . . . Robots Hopped . | . . . . . Potential Cave-ins 1 | . . 1 . . Cave-ins Triggered . | . . . . . Exploration Rate (%) 41 | 3 76 36 18 74 Regions Visited 4 Branch Regions 3 Pre-discovered Areas . | . . . . . Known Exits Taken . | . . . . . Unknown Exits Taken 4 | 1 1 1 1 . Scrap Searched 9 | . . 7 . 2 Spaces Dug 4 | . . . 4 . Terrain Destroyed 39 | . . 35 4 . Melee 4 | . . . 4 . Projectile 2 | . . 2 . . AOE 33 | . . 33 . . Terrain Rammed . | . . . . . Walls Destroyed . | . . . . . Machines Disabled . | . . . . . Actions | -11 -10 -10 -8 -8 --------- Run | Yrd Mat Sub Rec Scr Total 2705 | 58 635 711 142 1159 Wait 141 | . 81 26 . 34 Move 2395 | 47 485 630 131 1102 Hop . | . . . . . Pick Up 24 | 1 12 2 1 8 Fast Attach 18 | 6 2 6 3 1 Attach . | . . . . . Detach . | . . . . . Swap 17 | 1 9 4 . 3 Drop 30 | . 9 8 2 11 Fire 67 | 3 29 35 . . Melee 11 | . 6 . 5 . Ram . | . . . . . Kick 2 | . 2 . . . Crush . | . . . . . Escape Stasis . | . . . . . Rewire . | . . . . . Trap . | . . . . . Miscellaneous . | . . . . . Route ------- -11/Scrapyard -10/Materials (discovered 5 exits: [*Mat x3] / *Min / *Sub) -10/Subcaves (discovered 2 exits: [*Mat] / *Rec) -8/Recycling -8/Scraptown (discovered 2 exits: [*Fac x2]) History --------- Turn | Location | Event 12 | -11/Scrapyard | Discovered new exit (range 16) 79 | -11/Scrapyard | Entered Materials 244 | -10/Materials | Discovered new exit (range 5) 271 | -10/Materials | Discovered new exit (range 15) 314 | -10/Materials | Build established: Mutant 486 | -10/Materials | Discovered new exit (range 16) 770 | -10/Materials | Discovered new exit (range 14) 907 | -10/Materials | Discovered new exit (range 14) 930 | -10/Materials | Identified exit to Mines 960 | -10/Materials | Entered Subcaves 993 | -10/Subcaves | Discovered new exit (range 10) 1085 | -10/Subcaves | Discovered new exit (range 10) 1277 | -10/Subcaves | Visited Clippyterm 1521 | -10/Subcaves | Core integrity fell below 50% 1608 | -10/Subcaves | Learned Materials trap positions 1643 | -10/Subcaves | Build established: Scavenger-Mutant 1720 | -10/Subcaves | Core integrity fell below 20% 1749 | -10/Subcaves | Learned 2 Materials zone layouts 1965 | -10/Subcaves | Ambushed by Subdweller buried in earth 1983 | -10/Subcaves | Entered Recycling 2014 | -8/Recycling | Build established: Mutant 2143 | -8/Recycling | Scanned before Scraplab entrance 2167 | -8/Recycling | Entered Scraplab 2184 | -8/Recycling | Discovered new exit (range 2) 2188 | -8/Recycling | Entered Scraptown 2365 | -8/Scraptown | Build established: Scavenger-Mutant 2400 | -8/Scraptown | Visited Fellowship of the Rings 2470 | -8/Scraptown | Visited Awakened 2512 | -8/Scraptown | Visited Cave Peace 2604 | -8/Scraptown | Scanned Subdweller tech in exchange for log data 2609 | -8/Scraptown | Learned Factory security intel 2611 | -8/Scraptown | Learned 8 Research zone layouts 2637 | -8/Scraptown | Discovered new exit (range 3) 2842 | -8/Scraptown | Visited Comm Corps 2970 | -8/Scraptown | Visited UFD Registry 2991 | -8/Scraptown | Visited CR-KLE's Repair Center 3002 | -8/Scraptown | CR-KLE repaired 6 parts 3063 | -8/Scraptown | Visited Artisan Demo Area 3178 | -8/Scraptown | Registered with UFD as "Matrixranger" 3277 | -8/Scraptown | Visited Curators Association 3344 | -8/Scraptown | Visited Derelict Rescue Squad 3356 | -8/Scraptown | Found DRS Beacon 3391 | -8/Scraptown | Visited Junk Repository 3543 | -8/Scraptown | Discovered new exit (range 5) 3607 | -8/Scraptown | Visited Scrap Suit Storage 3648 | -8/Scraptown | Visited A0-MCA Data Center 3649 | -8/Scraptown | Build established: Mutant 3658 | -8/Scraptown | Given an A rating by A0-MCA 3662 | -8/Scraptown | Found A0-MCA's Component Scanner 3725 | -8/Scraptown | Met Optimus 3725 | -8/Scraptown | Accepted into 0bPrime 3821 | -8/Scraptown | Visited Supply Room 3872 | -8/Scraptown | Found Scrap Suit 3926 | -8/Scraptown | Visited Infowarlord's Domain 3937 | -8/Scraptown | Found Exp. Terrain Scanner 3958 | -8/Scraptown | Civil war broke out across Scraptown 4006 | -8/Scraptown | Destroyed by 8F-USX(h) with Bolt Gun Last Messages --------------- Penetrated by Bolt. Bolt penetrates Wall. Penetrated by Slug. Machine disabled. Penetrated by Slug. Penetrated by Bolt. Critical hit (Destroy). Med. Treads destroyed. Penetrated by Bolt. Slug penetrates Machine. Machine disabled. Penetrated by Slug. Grenade Launcher destroyed. ZM-6LW(j) cannibalizes Ovr. Titanium Leg to repair Ovr. Titanium Leg. ZM-6LW(j) suffers critical hit (Destroy). ZM-6LW(j) destroyed. Penetrated by Slug. Lgt. Nuclear Core destroyed. [Achievement: This Is Interesting...] [Achievement: Achiever] Map ----- +----------------------------------------------------+ | ?????????????????????????????????????????????????? | | ?????????????????????????????????????????????????? | | ?????????????????????????????????#####???????????? | | ?????????????????????????????????#"""#???????????? | | ??###################???####?????#" "#???????????? | | ?#"""##"""##""|##"""#??## ##????# < #???????????? | | ?#"" ##""!##""|##!!"#### ###### ##??????????? | | ?#"" #??????????? | | ?# #??????????? | | ?####################### ###########??????????? | | ???????????????????????##!=##????????????????????? | | ?##########?????????????#EE#?????????????????????? | | ?#""""""""#?????????????#%%#??#######????????????? | | ?#" "&& "#?????????????#![#??" !"#????????????? | | ?#" "#?????????????#!!#??#" "#????????????? | | ?#"" ""#?????????????#[=####X ##????????????? | | ?#" "#?????????????#!!#"! !"#????????????? | | ?#"" ""#???########### #"!/ !"#????????????? | | ?#" & "#???#[!#!/!#[ # ;" [ !"#????????????? | | ?#"" = ""#???#!=#=] # !# x#"!! !"#????????????? | | ?# #???# # #= # #"! "#????????????? | | ?# #???# # ## ##????????????? | | ?# #???# # # #????????????? | | ?###### ###???##### ##### ## #######????????????? | | ####### ########### ##### ;# #############??????? | | """"""" """"""""""" """""@ " ##""""""""""??????? | | "## """""""""#?????? | | h * ;# """""""""#?????? | | % ;# " """"#?????? | | g ## = """"#?????? | | h ""#?????? | | """""""""""""""""""""" " ## """""""""#?????? | | """"""""""""""""""""""""" ;# ""!""""""#?????? | | ##### ################"" ## """""""""#?????? | | ##????????#"" ############??????? | | X"#????????#"" "## "" #?????????? | | "" "" ##????????#"" ## "" #?????????? | | "" "" X"#??????###"" ""# !!"#?????????? | | " " ######### #""= "## !""#?????????? | | "" %= !""#?????????? | | "" ## #?????????? | | " " ######### #" ## !"!"#?????????? | | "" "" ""#??????###" ## "/""#?????????? | | "" "" ##????????# "#########?????????? | | X"#????????#" "###########???????? | | ##????????#" ! "## #???????? | | ##### ######?????#####"" =%[ "## #???????? | | """""""""??????"""""""""" "## #???????? | | """"""""""""""""""""""""" #???????? | | "## #???????? | +----------------------------------------------------+ Best States ------------- Heat Dissipation 35 Coolant Potential 50 Energy Generation 15 Energy Capacity 250 Matter Stores 300 Matter Capacity 300 Sight Range 16 Terrain Scan Density 10 Armor Coverage 150 Resistance: EM 15 Evasion (%) 55 Recoil Reduction 2 Item Schematics ----------------- None Robot Schematics ------------------ None Fabricated ------------ Nothing Repaired ---------- Nothing Studied --------- None Alien Tech Used ----------------- None Achievements -------------- Achiever Junior Dev Link The Feds This Is Interesting... Wiki Contributor Challenges ------------ None Game ------ Seed EfficiencyLinearSpecial Manual? 0 Play Time 00:38:35 Cumulative 25.1 hours Start 2025.11.14 @ 12:06:40 End 2025.11.14 @ 12:52:06 Sessions 1 Manual Loads 0 Difficulty Rogue Special Mode None Game No. 19 Rogue 19 Adventurer 0 Explorer 0 Win Type - Total 0 Types 0/0/0/0/0/0/0/0/0/0 Lore% 28 Gallery% 34 Achievement% 25 Wizard Run 0 Options --------- Layout 0 ASCII 0 Keyboard 0 Movement Numpad Keybinds 0 Fullscreen 2 Font 18/Terminus Map View 76x50 Zoom Use 0% Tactical HUD 0 Map Filters NONE Filters NONE Steam 1 RUN: 225b7bd2-28f3-4960-940d-bf808a32204f